bitfinex/quotes_BTCUSD_20241103
["timestamp","ask_amount","ask_price","bid_price","bid_amount"]
[1730673036615,0.130145,69154.0,69150.0,0.0487]
[1730673036834,0.001,69153.0,69152.0,0.003]
[1730673037263,0.130145,69154.0,69152.0,0.01283065]
[1730673037473,0.131145,69154.0,69152.0,0.003]
[1730673037677,0.131145,69154.0,69153.0,0.01282686]
[1730673037882,0.131145,69154.0,69152.0,0.007]
[1730673038117,0.131145,69154.0,69152.0,0.003]
[1730673038320,0.131145,69154.0,69153.0,0.01282686]
[1730673038943,0.132145,69154.0,69153.0,0.01282686]
[1730673039351,0.21652989,69158.0,69153.0,0.01282686]
[1730673039554,0.00164,69154.0,69153.0,0.01282686]
[1730673040205,0.00264,69154.0,69153.0,0.003]
[1730673041290,0.00364,69154.0,69153.0,0.008]
[1730673043687,0.00364,69154.0,69153.0,0.02088323]
[1730673044560,0.00340782,69154.0,69153.0,0.02088323]
[1730673046741,0.00340782,69154.0,69153.0,0.02972523]
[1730673047421,0.00340782,69154.0,69153.0,0.023775]
[1730673047632,0.00340782,69154.0,69153.0,0.02972521]
[1730673054313,0.00340782,69154.0,69153.0,0.02683344]
[1730673054526,0.00340782,69154.0,69153.0,0.15697944]
[1730673058509,0.00340782,69154.0,69153.0,0.15698531]
[1730673058717,0.00340782,69154.0,69153.0,0.02683931]
[1730673061683,0.00340782,69154.0,69153.0,0.02765931]
[1730673062317,0.25835182,69154.0,69153.0,0.02765931]
[1730673062544,0.25835182,69154.0,69153.0,0.00882]
[1730673062962,0.35800803,69154.0,69153.0,0.00882]
[1730673064204,0.25835182,69154.0,69153.0,0.00882]
[1730673070522,0.50380507,69154.0,69153.0,0.00882]
[1730673074750,0.50357289,69154.0,69153.0,0.00882]
[1730673079311,0.63846167,69154.0,69153.0,0.00882]
[1730673079771,0.50357289,69154.0,69153.0,0.00882]
[1730673079994,0.54686291,69154.0,69153.0,0.00882]
[1730673080224,0.54684995,69154.0,69153.0,0.00882]
[1730673080487,0.50357289,69154.0,69153.0,0.00882]
[1730673084162,0.62657289,69154.0,69153.0,0.00882]
[1730673084374,0.76643917,69154.0,69153.0,0.00882]
[1730673085195,0.60257289,69154.0,69153.0,0.00382]
[1730673085401,0.60657289,69154.0,69153.0,0.00382]
[1730673085825,0.60557289,69154.0,69153.0,0.00082]
[1730673086024,0.60657289,69154.0,69153.0,0.00082]
[1730673087688,0.64983187,69154.0,69153.0,0.00082]
[1730673088825,0.75816289,69154.0,69153.0,0.00082]
[1730673090862,0.71490391,69154.0,69153.0,0.00082]
[1730673092687,0.60657289,69154.0,69153.0,0.00082]
[1730673094749,0.60634071,69154.0,69153.0,0.00082]
[1730673100715,0.62934071,69154.0,69153.0,0.00082]
[1730673104634,0.67258977,69154.0,69153.0,0.00082]
[1730673105531,0.69421431,69154.0,69153.0,0.00082]
[1730673105766,0.62934071,69154.0,69153.0,0.00082]
[1730673105983,0.77516645,69154.0,69153.0,0.00082]
[1730673108506,1.01621113,69154.0,69153.0,0.00082]
[1730673108738,1.10269896,69154.0,69153.0,0.00082]
[1730673108957,1.00304275,69154.0,69153.0,0.00082]
[1730673110761,1.05294275,69154.0,69153.0,0.00082]
[1730673111051,0.90711701,69154.0,69153.0,0.00082]
[1730673113784,0.95221369,69154.0,69153.0,0.00082]
[1730673117006,0.96108799,69154.0,69153.0,0.00082]
[1730673117727,0.87460016,69154.0,69153.0,0.00082]
[1730673117956,1.0204259,69154.0,69153.0,0.00082]
[1730673118411,1.12508211,69154.0,69153.0,0.00082]
[1730673118638,1.2331919,69154.0,69153.0,0.00082]
[1730673119149,1.13008211,69154.0,69153.0,0.00082]
[1730673119841,1.13008211,69154.0,69127.0,0.00595107]
[1730673119842,0.130193,69128.0,69127.0,0.00595107]
[1730673120080,0.130193,69128.0,69126.0,0.00082]
[1730673120081,0.130195,69127.0,69126.0,0.00082]
[1730673120322,0.27599204,69127.0,69126.0,0.00082]
[1730673121741,0.49252193,69127.0,69126.0,0.00082]
[1730673121967,0.39725248,69127.0,69126.0,0.00082]
[1730673122431,0.39825248,69127.0,69126.0,0.00382]
[1730673122691,0.27699204,69127.0,69126.0,0.00382]
[1730673123883,0.27599204,69127.0,69126.0,0.00082]
[1730673124117,0.27599204,69127.0,69126.0,0.00282]
[1730673124801,0.27575946,69127.0,69126.0,0.00282]
[1730673125937,0.30900258,69127.0,69126.0,0.00282]
[1730673127803,0.27575946,69127.0,69126.0,0.00282]
[1730673131700,0.27575946,69127.0,69126.0,0.05222]
[1730673132381,0.27575946,69127.0,69126.0,0.00282]
[1730673140655,0.27575946,69127.0,69122.0,0.0494]
[1730673140656,0.14579704,69127.0,69122.0,0.04804]
[1730673140887,0.130202,69123.0,69122.0,0.04804]
[1730673141114,0.27599904,69123.0,69122.0,0.04804]
[1730673142316,0.27599904,69123.0,69122.0,0.04904]
[1730673143007,0.27599904,69123.0,69122.0,0.04804]
[1730673143228,0.27699904,69123.0,69122.0,0.05004]
[1730673143453,0.27699904,69123.0,69122.0,0.001]
[1730673143674,0.27699904,69123.0,69122.0,0.002]
[1730673143903,0.39723376,69123.0,69122.0,0.002]
[1730673151434,0.39723376,69123.0,69122.0,0.00282]
[1730673153016,0.39523376,69123.0,69122.0,0.00082]
[1730673153476,0.39623376,69123.0,69122.0,0.00182]
[1730673154823,0.39723376,69123.0,69122.0,0.00282]
[1730673155257,0.39723376,69123.0,69122.0,0.00182]
[1730673155469,0.39623376,69123.0,69122.0,0.00182]
[1730673155683,0.39723376,69123.0,69122.0,0.00877828]
[1730673157032,0.39723376,69123.0,69122.0,0.00282]
[1730673157312,0.39723376,69123.0,69122.0,0.00877853]
[1730673157954,0.39723376,69123.0,69122.0,0.00282]
[1730673158353,0.39723376,69123.0,69111.0,0.03875456]
[1730673158354,0.130223,69112.0,69111.0,0.03875456]
[1730673158600,0.130223,69112.0,69111.0,0.04471498]
[1730673158828,0.130223,69112.0,69111.0,0.05563933]
[1730673159989,0.130223,69112.0,69111.0,0.01688477]
[1730673161541,0.132223,69112.0,69111.0,0.01688477]
[1730673162000,0.131223,69112.0,69111.0,0.01688477]
[1730673163876,0.132223,69112.0,69111.0,0.01770477]
[1730673166222,0.1975331,69112.0,69111.0,0.01770477]
[1730673166451,0.132223,69112.0,69111.0,0.01770477]
[1730673167355,0.132223,69112.0,69111.0,0.01174435]
[1730673173937,0.132223,69112.0,69111.0,0.00082]
[1730673174143,0.132223,69112.0,69111.0,0.01214457]
[1730673174967,0.132223,69112.0,69111.0,0.027612]
[1730673175425,0.132223,69112.0,69111.0,0.01809323]
[1730673175814,0.1975331,69112.0,69111.0,0.01809323]
[1730673177106,0.1975331,69112.0,69111.0,0.01809227]
[1730673180654,0.1975331,69112.0,69111.0,0.01214457]
[1730673180870,0.1975331,69112.0,69111.0,0.01809147]
[1730673181093,0.132223,69112.0,69111.0,0.01809147]
[1730673191254,0.132223,69112.0,69111.0,0.01214457]
[1730673191484,0.132223,69112.0,69111.0,0.02761443]
[1730673196375,0.179223,69112.0,69111.0,0.02761443]
[1730673196810,0.179223,69112.0,69111.0,0.01628986]
[1730673198448,0.132223,69112.0,69111.0,0.01628986]
[1730673198917,0.132223,69112.0,69111.0,0.00082]
[1730673199147,0.132223,69112.0,69111.0,0.0163001]
[1730673199389,0.132223,69112.0,69111.0,0.00082]
[1730673202986,0.132223,69112.0,69111.0,0.01630012]
[1730673204379,0.132223,69112.0,69111.0,0.00082]
[1730673205714,0.132223,69112.0,69111.0,0.01629895]
[1730673207680,0.132223,69112.0,69111.0,0.01629843]
[1730673209009,0.132223,69112.0,69111.0,0.00677289]
[1730673211449,0.132223,69112.0,69111.0,0.00677261]
[1730673214858,0.2067322,69112.0,69111.0,0.00677261]
[1730673215328,0.2067322,69112.0,69111.0,0.00677223]
[1730673215781,0.132223,69112.0,69111.0,0.00677223]
[1730673217620,0.255523,69112.0,69111.0,0.00677223]
[1730673218317,0.253523,69112.0,69111.0,0.00677223]
[1730673218596,0.254523,69112.0,69111.0,0.00677223]
[1730673218825,0.255523,69112.0,69111.0,0.00677223]
[1730673219050,0.253523,69112.0,69111.0,0.00677223]
[1730673219508,0.254523,69112.0,69111.0,0.00082]
[1730673219751,0.34306484,69112.0,69111.0,0.00082]
[1730673220205,0.34306484,69112.0,69111.0,0.00034]
[1730673221572,0.254523,69112.0,69111.0,0.00034]
[1730673226626,0.253523,69112.0,69111.0,0.00034]
[1730673234835,0.255163,69112.0,69111.0,0.00034]
[1730673236151,0.178663,69112.0,69111.0,0.00034]
[1730673263431,0.22195881,69112.0,69111.0,0.00034]
[1730673264579,0.22197585,69112.0,69111.0,0.00034]
[1730673265224,0.25319971,69112.0,69111.0,0.00034]
[1730673266740,0.22197585,69112.0,69111.0,0.00034]
[1730673267605,0.178663,69112.0,69111.0,0.00034]
[1730673268376,0.178663,69112.0,69111.0,0.00034]
[1730673269250,0.22198093,69112.0,69111.0,0.00034]
[1730673269802,0.178663,69112.0,69111.0,0.00034]
[1730673270005,0.22198093,69112.0,69111.0,0.00034]
[1730673271298,0.33074158,69112.0,69111.0,0.00034]
[1730673271510,0.22198093,69112.0,69111.0,0.00034]
[1730673271710,0.22198083,69112.0,69111.0,0.00034]
[1730673274954,0.178663,69112.0,69111.0,0.00034]
[1730673275175,0.53619565,69112.0,69111.0,0.00034]
[1730673275382,0.31966576,69112.0,69111.0,0.00034]
[1730673275606,0.40626955,69112.0,69111.0,0.00034]
[1730673275847,0.31966576,69112.0,69111.0,0.00034]
[1730673276933,0.178663,69112.0,69111.0,0.00034]
[1730673277154,0.24360938,69112.0,69111.0,0.00034]
[1730673277424,0.24360606,69112.0,69111.0,0.00034]
[1730673277648,0.35798701,69112.0,69111.0,0.00034]
[1730673280969,0.43388701,69112.0,69111.0,0.00034]
[1730673281214,0.36894395,69112.0,69111.0,0.00034]
[1730673281658,0.5096937,69112.0,69111.0,0.00034]
[1730673281876,0.59628445,69112.0,69111.0,0.00034]
[1730673282333,0.5096937,69112.0,69111.0,0.00034]
[1730673285224,0.58547384,69112.0,69111.0,0.00034]
[1730673285438,0.36894395,69112.0,69111.0,0.00034]
[1730673288308,0.50942566,69112.0,69111.0,0.00034]
[1730673291168,0.36894395,69112.0,69111.0,0.00034]
[1730673292078,0.50938417,69112.0,69111.0,0.00034]
[1730673292515,0.59597492,69112.0,69111.0,0.00034]
[1730673292791,1.22469241,69112.0,69111.0,0.00034]
[1730673293021,0.89992409,69112.0,69111.0,0.00034]
[1730673294794,0.80026788,69112.0,69111.0,0.00034]
[1730673294993,0.130268,69088.0,69084.0,0.1805903]
[1730673295206,0.130268,69088.0,69086.0,0.21652989]
[1730673295421,0.130268,69088.0,69087.0,0.0154561]
[1730673295628,0.130268,69088.0,69087.0,0.02553715]
[1730673296483,0.001,69088.0,69087.0,0.02553715]
[1730673296890,0.130264,69090.0,69087.0,0.02553715]
[1730673297100,0.130264,69090.0,69088.0,0.0154561]
[1730673297309,0.130264,69090.0,69089.0,0.01545828]
[1730673297697,0.130264,69090.0,69089.0,0.02552794]
[1730673297924,0.130264,69090.0,69089.0,0.0160148]
[1730673299065,0.130264,69090.0,69089.0,0.02552613]
[1730673299309,0.131264,69090.0,69089.0,0.0160148]
[1730673299532,0.132264,69090.0,69089.0,0.0160148]
[1730673299746,0.131264,69090.0,69089.0,0.02552613]
[1730673299979,0.131264,69090.0,69089.0,0.0160148]
[1730673300201,0.132264,69090.0,69089.0,0.02552613]
[1730673300464,0.132264,69090.0,69089.0,0.0160148]
[1730673300687,0.132264,69090.0,69089.0,0.02552536]
[1730673300918,0.002,69090.0,69089.0,0.01601381]
[1730673301142,0.002,69090.0,69089.0,0.01601376]
[1730673301394,0.002,69090.0,69089.0,0.02243084]
[1730673301621,0.002,69090.0,69089.0,0.01291936]
[1730673301846,0.002,69090.0,69089.0,0.00697526]
[1730673302309,0.002,69090.0,69087.0,0.13027]
[1730673302536,0.002,69090.0,69089.0,0.00698537]
[1730673302772,0.002,69090.0,69089.0,0.00594492]
[1730673303057,0.002,69090.0,69089.0,0.01293029]
[1730673303271,0.001,69090.0,69089.0,0.02244325]
[1730673303501,0.002,69090.0,69089.0,0.02326325]
[1730673303952,0.001,69090.0,69089.0,0.02326325]
[1730673304615,0.002,69090.0,69089.0,0.02326325]
[1730673304840,0.001,69090.0,69089.0,0.02326325]
[1730673305319,0.002,69090.0,69089.0,0.02326325]
[1730673305836,0.002,69090.0,69089.0,0.15352925]
[1730673306049,0.002,69090.0,69089.0,0.38629288]
[1730673306267,0.002,69090.0,69089.0,0.42869831]
[1730673307271,0.002,69090.0,69089.0,0.41324043]
[1730673307507,0.002,69090.0,69089.0,0.4286999]
[1730673310447,0.002,69090.0,69089.0,0.47207724]
[1730673314548,0.002,69090.0,69089.0,0.4720804]
[1730673315217,0.00364,69090.0,69089.0,0.4720804]
[1730673316375,0.00364,69090.0,69089.0,0.42870306]
[1730673318552,0.05054,69090.0,69089.0,0.02604002]
[1730673318774,0.180804,69090.0,69089.0,0.02604002]
[1730673319003,0.22954512,69090.0,69089.0,0.02604002]
[1730673319464,0.180804,69090.0,69089.0,0.02604002]
[1730673319724,0.180804,69090.0,69089.0,0.01628263]
[1730673320181,0.180804,69090.0,69089.0,0.02614308]
[1730673321767,0.180804,69090.0,69089.0,0.01068045]
[1730673321996,0.180804,69090.0,69089.0,0.02614027]
[1730673322946,0.180804,69090.0,69089.0,0.01068045]
[1730673323158,0.180804,69090.0,69089.0,0.02614003]
[1730673324533,0.180804,69090.0,69089.0,0.01614003]
[1730673324760,0.180804,69090.0,69089.0,0.01545958]
[1730673325215,0.05054,69090.0,69089.0,0.01545958]
[1730673325699,0.180804,69090.0,69089.0,0.01545958]
[1730673328682,0.13027,69088.0,69084.0,0.131096]
[1730673329333,0.13027,69088.0,69084.0,0.126096]
[1730673329781,0.13027,69088.0,69084.0,0.126916]
[1730673330003,0.13127,69088.0,69084.0,0.126916]
[1730673330497,0.13127,69088.0,69085.0,0.00594578]
[1730673330744,0.13227,69088.0,69084.0,0.126916]
[1730673330975,0.13227,69088.0,69086.0,0.00951404]
[1730673331218,0.13227,69088.0,69087.0,0.01545974]
[1730673331452,0.13027,69088.0,69087.0,0.01545974]
[1730673331905,0.13227,69088.0,69087.0,0.0247555]
[1730673332145,0.13127,69088.0,69087.0,0.0247555]
[1730673332849,0.13227,69088.0,69087.0,0.0247555]
[1730673333287,0.22009252,69088.0,69087.0,0.0247555]
[1730673333511,0.13227,69088.0,69087.0,0.0197555]
[1730673335360,0.17837,69088.0,69087.0,0.0197555]
[1730673337381,0.17837,69088.0,69087.0,0.01045974]
[1730673338115,0.178368,69088.0,69087.0,0.00950582]
[1730673338346,0.178368,69088.0,69087.0,0.01777476]
[1730673339956,0.178368,69088.0,69087.0,0.00777476]
[1730673340179,0.130272,69087.0,69084.0,0.00082]
[1730673340403,0.130272,69087.0,69085.0,0.00823706]
[1730673341571,0.131272,69087.0,69085.0,0.00823706]
[1730673341800,0.132272,69087.0,69085.0,0.00823706]
[1730673342032,0.131272,69087.0,69085.0,0.00823706]
[1730673342492,0.132272,69087.0,69085.0,0.00823706]
[1730673342945,0.130272,69086.0,69085.0,0.00823706]
[1730673343179,0.1267,69086.0,69084.0,0.00082]
[1730673343416,0.130274,69085.0,69084.0,0.00082]
[1730673344422,0.1267,69086.0,69085.0,0.130274]
[1730673344423,0.001,69086.0,69085.0,0.130274]
[1730673344653,0.00164,69090.0,69085.0,0.130274]
[1730673344887,0.001,69086.0,69085.0,0.390822]
[1730673345116,0.00164,69090.0,69089.0,0.130266]
[1730673345577,0.00164,69090.0,69089.0,0.13620929]
[1730673346029,0.00264,69090.0,69089.0,0.13620929]
[1730673346252,0.00164,69090.0,69089.0,0.13620929]
[1730673347148,0.00264,69090.0,69089.0,0.13620929]
[1730673347963,0.00364,69090.0,69089.0,0.13620929]
[1730673349367,0.00364,69090.0,69089.0,0.13621282]
[1730673349768,0.00364,69090.0,69089.0,0.14572841]
[1730673350179,0.05354,69090.0,69089.0,0.14572841]
[1730673352905,0.05354,69090.0,69089.0,0.14572696]
[1730673356476,0.05354,69090.0,69089.0,0.15395623]
[1730673361051,0.05300941,69090.0,69089.0,0.15395623]
[1730673362550,0.18327341,69090.0,69089.0,0.02369023]
[1730673362771,0.05300941,69090.0,69089.0,0.02369023]
[1730673365238,0.05277675,69090.0,69089.0,0.02369023]
[1730673367482,0.18304075,69090.0,69089.0,0.02369023]
[1730673370234,0.18304075,69090.0,69089.0,0.02366733]
[1730673373116,0.18304075,69090.0,69089.0,0.01543806]
[1730673373810,0.18304075,69090.0,69089.0,0.02367126]
[1730673375609,0.18304075,69090.0,69089.0,0.01543806]
[1730673376037,0.18304075,69090.0,69089.0,0.02367126]
[1730673379410,0.18304075,69090.0,69089.0,0.02449126]
[1730673382585,0.18304075,69090.0,69089.0,0.01625806]
[1730673384894,0.26334075,69090.0,69089.0,0.01626214]
[1730673385124,0.36299696,69090.0,69089.0,0.01626214]
[1730673385362,0.36299696,69090.0,69089.0,0.00675893]
[1730673385363,0.36282267,69090.0,69089.0,0.00675893]
[1730673385808,0.36182267,69090.0,69089.0,0.00675893]
[1730673386068,0.26116646,69090.0,69089.0,0.00675893]
[1730673386293,0.26316646,69090.0,69089.0,0.00675893]
[1730673386516,0.26216646,69090.0,69089.0,0.00675893]
[1730673386962,0.26616646,69090.0,69089.0,0.00675893]
[1730673387413,0.27016646,69090.0,69089.0,0.00675893]
[1730673388579,0.36982267,69090.0,69089.0,0.00675893]
[1730673389059,0.27016646,69090.0,69089.0,0.00675893]
[1730673390827,0.32835025,69090.0,69089.0,0.00082]
[1730673391056,0.32835025,69090.0,69089.0,0.00675536]
[1730673391943,0.32835025,69090.0,69089.0,0.00675508]
[1730673393766,0.27016646,69090.0,69089.0,0.00675508]
[1730673395571,0.27016646,69090.0,69089.0,0.00675444]
[1730673396978,0.13990246,69090.0,69082.0,3.244e-05]
[1730673397206,0.0488,69085.0,69083.0,0.00949604]
[1730673397434,0.0488,69085.0,69082.0,3.244e-05]
[1730673397656,0.130278,69083.0,69082.0,3.244e-05]
[1730673397888,0.130278,69083.0,69082.0,0.00952995]
[1730673399008,0.130278,69083.0,69082.0,0.00952127]
[1730673401397,0.130278,69083.0,69082.0,0.01777269]
[1730673402145,0.2002951,69083.0,69082.0,0.01777269]
[1730673402581,0.130278,69083.0,69082.0,0.00952127]
[1730673403537,0.130278,69083.0,69082.0,3.244e-05]
[1730673403761,0.261378,69083.0,69082.0,3.244e-05]
[1730673404869,0.179078,69083.0,69082.0,3.244e-05]
[1730673405314,0.181078,69083.0,69082.0,3.244e-05]
[1730673405748,0.263378,69083.0,69082.0,3.244e-05]
[1730673405965,0.264378,69083.0,69082.0,3.244e-05]
[1730673406617,0.263378,69083.0,69082.0,3.244e-05]
[1730673407290,0.265378,69083.0,69082.0,3.244e-05]
[1730673407724,0.263378,69083.0,69082.0,3.244e-05]
[1730673407948,0.266378,69083.0,69082.0,3.244e-05]
[1730673408603,0.184078,69083.0,69082.0,3.244e-05]
[1730673408821,0.181078,69083.0,69082.0,3.244e-05]
[1730673409030,0.181078,69083.0,69082.0,0.00596212]
[1730673409505,0.179078,69083.0,69082.0,0.00596212]
[1730673409717,0.180078,69083.0,69082.0,0.00596231]
[1730673410151,0.180078,69083.0,69082.0,0.0195321]
[1730673411116,0.182078,69083.0,69082.0,0.00596231]
[1730673411332,0.179078,69083.0,69082.0,0.00596231]
[1730673411550,0.183078,69083.0,69082.0,0.00596231]
[1730673411794,0.188078,69083.0,69082.0,0.00596231]
[1730673412848,0.189718,69083.0,69082.0,0.00596231]
[1730673413273,0.189718,69083.0,69082.0,0.01953511]
[1730673415167,0.189718,69083.0,69082.0,0.00596231]
[1730673417136,0.189718,69083.0,69082.0,0.0195353]
[1730673419137,0.189718,69083.0,69082.0,0.02370793]
[1730673425479,0.18954289,69083.0,69082.0,0.02370793]
[1730673426277,0.18954289,69083.0,69082.0,0.02371294]
[1730673426591,0.05944,69083.0,69082.0,0.02371294]
[1730673426814,0.189718,69083.0,69082.0,0.02371294]
[1730673427518,0.189718,69083.0,69082.0,0.19740616]
[1730673427519,0.01064,69083.0,69082.0,0.19740616]
[1730673427747,0.01064,69083.0,69082.0,0.15399194]
[1730673427970,0.01064,69083.0,69082.0,0.37940978]
[1730673428653,0.01064,69083.0,69082.0,0.37940112]
[1730673430922,0.01064,69083.0,69082.0,0.31427978]
[1730673431173,0.01064,69083.0,69082.0,0.37940317]
[1730673433415,0.01064,69083.0,69082.0,0.31427978]
[1730673433632,0.01064,69083.0,69082.0,0.37938489]
[1730673434540,0.01064,69083.0,69082.0,0.37931323]
[1730673435539,0.01064,69083.0,69082.0,0.21909606]
[1730673436399,0.01064,69083.0,69082.0,0.22159243]
[1730673436646,0.01064,69083.0,69082.0,0.14106224]
[1730673436864,0.01064,69083.0,69082.0,0.15647107]
[1730673437069,0.01064,69083.0,69082.0,0.19986483]
[1730673437282,0.01064,69083.0,69082.0,0.15647107]
[1730673438140,0.13674,69083.0,69082.0,0.19986389]
[1730673438337,0.13674,69083.0,69082.0,0.15647107]
[1730673438968,0.13496639,69083.0,69082.0,0.15647107]
[1730673439185,0.13496639,69083.0,69082.0,0.14698836]
[1730673439400,0.13496639,69083.0,69082.0,0.01670936]
[1730673440249,0.13496639,69083.0,69082.0,0.01078324]
[1730673440517,0.13496639,69083.0,69082.0,0.01670886]
[1730673445515,0.12996639,69083.0,69082.0,0.01670886]
[1730673447193,0.12774,69083.0,69082.0,0.01670886]
[1730673447621,0.12874,69083.0,69082.0,0.01870886]
[1730673448067,0.12774,69083.0,69082.0,0.01670886]
[1730673448356,0.12874,69083.0,69082.0,0.01870886]
[1730673448569,0.12974,69083.0,69082.0,0.01870886]
[1730673450308,0.260018,69083.0,69082.0,0.01870886]
[1730673451132,0.260018,69083.0,69082.0,0.01278324]
[1730673451738,0.260018,69083.0,69082.0,0.01871145]
[1730673452026,0.260018,69083.0,69082.0,0.01278324]
[1730673452669,0.260018,69083.0,69082.0,0.01871123]
[1730673452868,0.259018,69083.0,69082.0,0.01871123]
[1730673453279,0.260018,69083.0,69082.0,0.01871123]
[1730673453871,0.259018,69083.0,69082.0,0.01671123]
[1730673454415,0.130283,69081.0,69077.0,0.11112294]
[1730673454652,0.130283,69081.0,69078.0,0.00592789]
[1730673454865,0.130283,69081.0,69077.0,0.11112294]
[1730673455712,0.131283,69081.0,69077.0,0.11312294]
[1730673455953,0.0482,69080.0,69077.0,0.11312294]
[1730673457008,0.0482,69080.0,69077.0,0.11112294]
[1730673457228,0.0482,69080.0,69073.0,0.04340147]
[1730673457443,0.0482,69080.0,69076.0,0.13029]
[1730673457444,0.178484,69080.0,69076.0,0.13029]
[1730673457657,0.178484,69080.0,69073.0,0.260593]
[1730673457658,0.21809346,69080.0,69073.0,0.260593]
[1730673457876,0.21809346,69080.0,69072.0,0.30399747]
[1730673457877,0.21809346,69080.0,69072.0,0.30399975]
[1730673458078,0.21709346,69080.0,69076.0,0.13029]
[1730673458296,0.179484,69080.0,69076.0,0.12529]
[1730673458497,0.180484,69080.0,69076.0,0.12529]
[1730673458709,0.179484,69080.0,69076.0,0.12529]
[1730673458930,0.180484,69080.0,69076.0,0.12529]
[1730673459359,0.179484,69080.0,69076.0,0.12529]
[1730673459588,0.178484,69080.0,69077.0,0.00082]
[1730673461169,0.179484,69080.0,69077.0,0.00082]
[1730673461399,0.231482,69080.0,69077.0,0.00082]
[1730673461609,0.180484,69080.0,69077.0,0.00082]
[1730673462068,0.0462,69079.0,69078.0,0.01615672]
[1730673464060,0.0472,69079.0,69078.0,0.01615672]
[1730673464720,0.0482,69079.0,69078.0,0.01615672]
[1730673466769,0.0482,69079.0,69078.0,0.03154316]
[1730673470132,0.0482,69079.0,69078.0,0.02207423]
[1730673470360,0.1000979,69079.0,69078.0,0.0315498]
[1730673470583,0.0482,69079.0,69078.0,0.0315498]
[1730673472612,0.04984,69079.0,69078.0,0.0315498]
[1730673473952,0.04984,69079.0,69078.0,0.03155105]
[1730673477470,0.04984,69079.0,69078.0,0.01615672]
[1730673477694,0.04984,69079.0,69078.0,0.0315525]
[1730673480905,0.04984,69079.0,69078.0,0.03155482]
[1730673482187,0.04984,69079.0,69078.0,0.02207871]
[1730673484151,0.04984,69079.0,69078.0,0.02207892]
[1730673491144,0.04984,69079.0,69078.0,0.02207956]
[1730673494533,0.04984,69079.0,69078.0,0.01615672]
[1730673494758,0.04984,69079.0,69078.0,0.02207944]
[1730673498065,0.04984,69079.0,69078.0,0.02207909]
[1730673499222,0.04984,69079.0,69078.0,0.01615672]
[1730673499431,0.04984,69079.0,69078.0,0.02207891]
[1730673504961,0.04984,69079.0,69078.0,0.01615672]
[1730673505170,0.04984,69079.0,69078.0,0.0220788]
[1730673507424,0.04984,69079.0,69078.0,0.01346573]
[1730673507858,0.04984,69079.0,69075.0,0.04346441]
[1730673507859,0.049,69078.0,69075.0,0.04346441]
[1730673508092,0.179287,69078.0,69075.0,0.04346441]
[1730673508555,0.049,69078.0,69075.0,0.04346451]
[1730673508757,0.049,69078.0,69075.0,0.17375651]
[1730673510265,0.130289,69077.0,69075.0,0.04346451]
[1730673510474,0.049,69078.0,69075.0,0.17375651]
[1730673513643,0.179287,69078.0,69075.0,0.17375651]
[1730673514816,0.179287,69078.0,69075.0,0.17375524]
[1730673515054,0.179287,69078.0,69076.0,0.0134912]
[1730673515716,0.130289,69077.0,69076.0,0.0134912]
[1730673516178,0.180287,69078.0,69076.0,0.0134912]
[1730673516400,0.05,69078.0,69076.0,0.0134912]
[1730673516630,0.179288,69078.0,69074.0,0.17375724]
[1730673516840,0.179288,69078.0,69077.0,0.01348721]
[1730673517047,0.130289,69077.0,69074.0,0.17375724]
[1730673517264,0.179287,69078.0,69077.0,0.01348721]
[1730673517476,0.179287,69078.0,69075.0,0.04346324]
[1730673517705,0.179287,69078.0,69077.0,0.01348721]
[1730673517938,0.180287,69078.0,69076.0,0.0134912]
[1730673518149,0.180287,69078.0,69077.0,0.01348721]
[1730673518150,0.179287,69078.0,69077.0,0.01348721]
[1730673518578,0.180287,69078.0,69077.0,0.01348721]
[1730673518792,0.180927,69078.0,69075.0,0.04428328]
[1730673519053,0.181927,69078.0,69077.0,0.01348721]
[1730673519261,0.180927,69078.0,69076.0,0.0134912]
[1730673519484,0.180927,69078.0,69077.0,0.01940398]
[1730673519943,0.181927,69078.0,69077.0,0.01940398]
[1730673520409,0.181927,69078.0,69077.0,0.01940378]
[1730673520853,0.182927,69078.0,69077.0,0.01940378]
[1730673521517,0.181927,69078.0,69077.0,0.01940378]
[1730673522380,0.182927,69078.0,69077.0,0.01940378]
[1730673522823,0.26001901,69078.0,69077.0,0.01940378]
[1730673523051,0.34251901,69078.0,69077.0,0.01940378]
[1730673523283,0.34351901,69078.0,69075.0,0.00082]
[1730673523504,0.130291,69076.0,69075.0,0.00082]
[1730673523730,0.130291,69076.0,69075.0,0.006736]
[1730673523950,0.130291,69076.0,69075.0,0.00082]
[1730673524210,0.130291,69076.0,69075.0,0.00673599]
[1730673524430,0.130291,69076.0,69075.0,0.00082]
[1730673524641,0.130291,69076.0,69075.0,0.00673548]
[1730673526176,0.131291,69076.0,69075.0,0.00673548]
[1730673526384,0.132291,69076.0,69075.0,0.00673548]
[1730673527686,0.132291,69076.0,69075.0,0.00082]
[1730673527903,0.132291,69076.0,69075.0,0.00673415]
[1730673528963,0.179791,69076.0,69075.0,0.00673415]
[1730673529472,0.179791,69076.0,69075.0,0.00082]
[1730673529905,0.179791,69076.0,69075.0,0.00673369]
[1730673530124,0.179791,69076.0,69075.0,0.00082]
[1730673531023,0.2845194,69076.0,69075.0,0.00082]
[1730673532584,0.3678194,69076.0,69075.0,0.00082]
[1730673532812,0.3678194,69076.0,69061.0,0.001]
[1730673532813,0.23731,69066.0,69065.0,0.0008]
[1730673533042,0.75781082,69066.0,69065.0,0.0008]
[1730673533281,0.94233481,69066.0,69065.0,1e-06]
[1730673533509,0.235317,69062.0,69061.0,0.001]
[1730673533724,0.90257046,69062.0,69061.0,0.001]
[1730673533945,1.01057455,69062.0,69061.0,0.001]
[1730673534178,1.01006771,69062.0,69061.0,0.001]
[1730673534388,1.01006771,69062.0,69056.0,0.000819]
[1730673534389,0.57603942,69057.0,69056.0,0.000819]
[1730673534663,0.62218025,69057.0,69056.0,0.000819]
[1730673534888,0.86115093,69057.0,69056.0,0.000819]
[1730673535385,0.78795005,69057.0,69056.0,0.000819]
[1730673535829,0.66529384,69057.0,69056.0,0.000819]
[1730673536041,0.005,69028.0,69012.0,0.04181235]
[1730673536266,0.130393,69022.0,69021.0,0.21652989]
[1730673536482,0.260775,69025.0,69013.0,0.01155154]
[1730673536691,0.130393,69022.0,69021.0,0.01151954]